fUSD/lending_fUSD_20251109
["ID","MTS","AMOUNT","RATE_DAILY","PERIOD"]
[393432326,1762655213441,5000.00772505,0.000162,5]
[393432327,1762655221607,-845.96262942,0.00016549,2]
[393432328,1762655224867,492.01963684,0.0003,120]
[393432329,1762655225174,342.69933213,0.0002301,120]
[393432330,1762655252215,-356.68796446,0.000166,2]
[393432331,1762655265144,2194.61027828,0.00013,2]
[393432332,1762655271766,10000.01,0.00015,2]
[393432333,1762655271806,10000.01,0.00015,2]
[393432334,1762655271830,10000.01,0.00015,2]
[393432335,1762655271853,10000.01,0.00015,2]
[393432336,1762655271876,10000.01,0.00015,2]
[393432337,1762655271910,10000.01,0.00015,2]
[393432338,1762655271943,627899.51159977,0.00015,2]
[393432339,1762655288106,-272.32325364,0.00016554,2]
[393432342,1762655303197,-681.0,0.00016576,2]
[393432344,1762655306102,326.18449437,0.000246,120]
[393432345,1762655306131,681.0,0.000164,2]
[393432346,1762655310279,266.09014943,0.000107,2]
[393432347,1762655310563,503.17010096,0.000154,2]
[393432350,1762655317093,7187.74974961,0.00015,3]
[393432351,1762655317116,10000.01,0.00015,3]
[393432352,1762655317139,10000.01,0.00015,3]
[393432353,1762655317160,10000.01,0.00015,3]
[393432354,1762655317182,10000.01,0.00015,3]
[393432355,1762655317204,10000.01,0.00015,3]
[393432356,1762655317229,84883.51727297,0.00015,3]
[393432357,1762655317253,27450.19871276,0.00015,3]
[393432358,1762655317803,13034.59542041,0.0001,2]
[393432359,1762655319372,224.5186562,0.0003,120]
[393432360,1762655319620,10000.01,0.00015875,2]
[393432361,1762655319649,36012.42,0.00015875,2]
[393432362,1762655320863,959.22932443,0.00013699,2]
[393432364,1762655404408,283.9,0.00015852,2]
[393432365,1762655410321,-1726.84557519,0.00016181,2]
[393432366,1762655410353,-221.92525619,0.00016411,2]
[393432367,1762655410382,-264.99,0.0001654,2]
[393432368,1762655416269,-370.76962319,0.00016549,2]
[393432369,1762655416297,-152.41348761,0.00016549,2]
[393432370,1762655416326,-454.90199234,0.00016549,2]
[393432371,1762655416354,-300.0,0.00016549,2]
[393432372,1762655416383,-1200.0,0.00016549,2]
[393432373,1762655416411,-550.0,0.00016549,2]
[393432374,1762655419281,-231.29063628,0.00016449,2]
[393432375,1762655422328,-151.0,0.00016547,2]
[393432376,1762655422356,-169.64122107,0.00016547,2]
[393432377,1762655422582,-7579.85413798,0.0001655,2]
[393432378,1762655425327,-231.29063627,0.0001645,2]
[393432379,1762655425361,-9537.42872746,0.0001655,2]
[393432380,1762655425430,-10000.01,0.0001655,2]
[393432381,1762655425552,-10000.01,0.0001655,2]
[393432382,1762655425683,-10000.01,0.0001655,2]
[393432383,1762655425864,-10000.01,0.0001655,2]
[393432384,1762655425952,-10000.01,0.0001655,2]
[393432385,1762655426068,-10000.01,0.0001655,2]
[393432386,1762655431397,-231.29063627,0.0001645,2]
[393432387,1762655431436,-9537.42872746,0.0001655,2]
[393432388,1762655431487,-10000.01,0.0001655,2]
[393432389,1762655431657,-10000.01,0.0001655,2]
[393432395,1762655431765,-10000.01,0.0001655,2]
[393432397,1762655431776,-49064.54727057,0.0001655,2]
[393432401,1762655431905,-10000.01,0.0001655,2]
[393432402,1762655431929,-2325.971372,0.0001655,2]
[393432403,1762655431993,-536.8240265,0.0001655,2]
[393432404,1762655432004,-1707.54897056,0.0001655,2]
[393432405,1762655432016,-4095.31450825,0.0001655,2]
[393432406,1762655432030,-10000.01,0.0001655,2]
[393432407,1762655432107,-1543.162,0.0001655,2]
[393432408,1762655432121,-10000.01,0.0001655,2]
[393432486,1762655437754,-153.56368699,0.00016549,2]
[393432487,1762655437764,-500.0,0.00016549,2]
[393432488,1762655437773,-500.0,0.00016549,2]
[393432489,1762655437783,-184.90396546,0.00016549,2]
[393432490,1762655437792,-307.77945181,0.00016549,2]
[393432491,1762655437802,-2302.28983109,0.0001655,2]
[393432492,1762655437826,-297.27967901,0.0001655,2]
[393432493,1762655437931,-896.40182499,0.0001655,2]
[393432494,1762655440474,-10000.01,0.0001655,2]
[393432495,1762655440606,-10000.01,0.0001655,2]
[393432496,1762655440733,-10000.01,0.0001655,2]
[393432497,1762655440859,-10000.01,0.0001655,2]
[393432498,1762655440998,-10000.01,0.0001655,2]
[393432499,1762655441108,-10000.01,0.0001655,2]
[393432500,1762655441230,-10000.01,0.0001655,2]
[393432537,1762655442887,-666.1618454,0.0001655,2]
[393432568,1762655443147,-1359.27001,0.0001655,2]
[393432570,1762655443159,-4265.91282275,0.0001655,2]
[393432572,1762655443170,-305.43973936,0.0001655,2]
[393432579,1762655444001,-31888.09375487,0.0001655,2]
[393432588,1762655445913,-15091.323609,0.0001655,2]
[393432589,1762655446023,-1490.53,0.0001655,2]
[393432590,1762655446034,-269.32499987,0.0001655,2]
[393432591,1762655446078,-256.16795668,0.0001655,2]
[393432592,1762655446351,-84983.5341862,0.0001655,2]
[393432593,1762655446361,-720.283,0.0001655,2]
[393432594,1762655446370,-372.4588,0.0001655,2]
[393432595,1762655446379,-502.12339169,0.00016573,2]
[393432596,1762655446525,-500.0,0.00016573,2]
[393432597,1762655446538,-188.844865,0.00016573,2]
[393432598,1762655446547,-503.65444234,0.00016573,2]
[393432599,1762655446556,-500.0,0.00016573,2]
[393432600,1762655446565,-681.0,0.00016649,2]
[393432601,1762655446574,-86249.97696207,0.0001665,2]
[393432604,1762655548771,177.41,0.00012669,2]
[393432605,1762655548972,177.41,0.00015837,2]
[393432606,1762655558881,-1305.51634,0.0001649,2]
[393432607,1762655558916,-300.0,0.00016548,2]
[393432608,1762655558949,-500.0,0.00016549,2]
[393432609,1762655558985,-500.0,0.00016549,2]
[393432610,1762655559020,-500.0,0.00016549,2]
[393432611,1762655559053,-421.53861684,0.00016549,2]
[393432612,1762655559082,-158.2366574,0.00016549,2]
[393432613,1762655559110,-500.0,0.00016549,2]
[393432614,1762655559141,-597.91676497,0.00016549,2]
[393432615,1762655559600,-637.84576426,0.00016549,2]
[393432616,1762655559631,-637.84576426,0.00016549,2]
[393432617,1762655559664,-637.84576426,0.00016549,2]
[393432618,1762655559697,-637.84576426,0.00016549,2]
[393432619,1762655559727,-637.84576426,0.00016549,2]
[393432620,1762655559759,-637.84576426,0.00016549,2]
[393432621,1762655559789,-637.84576426,0.00016549,2]
[393432622,1762655559820,-432.3235361,0.00016549,2]
[393432623,1762655560138,-556.984,0.00016557,2]
[393432624,1762655560166,-503.70945434,0.00016573,2]
[393432625,1762655560194,-501.83285392,0.00016573,2]
[393432626,1762655560221,-525.70011692,0.00016648,2]
[393432627,1762655560250,-500.0,0.00016648,2]
[393432628,1762655560834,-284.29546974,0.0001665,2]
[393432629,1762655560848,-4823.55714964,0.0001665,2]
[393432630,1762655560862,-5339.82845215,0.0001665,2]
[393432631,1762655560871,-4660.18154785,0.0001665,2]
[393432632,1762655560886,-2556.94913305,0.0001665,2]
[393432633,1762655560896,-500.0,0.00016654,2]
[393432634,1762655560905,-500.0,0.00016654,2]
[393432635,1762655560914,-500.0,0.00016654,2]
[393432636,1762655560923,-326.80210895,0.00016654,2]
[393432637,1762655560932,-500.0,0.00016654,2]
[393432638,1762655560943,-500.0,0.00016654,2]
[393432639,1762655560952,-500.0,0.00016654,2]
[393432640,1762655562649,1200.0,0.00016649,2]
[393432641,1762655563065,500.0,0.00016548,2]
[393432642,1762655563099,500.0,0.00016548,2]
[393432643,1762655563129,500.0,0.00016548,2]
[393432644,1762655563158,500.0,0.00016548,2]
[393432645,1762655563186,500.0,0.00016548,2]
[393432646,1762655563218,500.0,0.00016548,2]
[393432647,1762655563250,500.0,0.00016548,2]
[393432648,1762655563279,500.0,0.00016548,2]
[393432649,1762655563332,500.0,0.00016548,2]
[393432650,1762655563360,500.0,0.00016548,2]
[393432651,1762655563392,500.0,0.00016548,2]
[393432652,1762655563420,500.0,0.00016548,2]
[393432653,1762655563448,500.0,0.00016548,2]
[393432654,1762655563482,500.0,0.00016548,2]
[393432655,1762655563513,500.0,0.00016548,2]
[393432656,1762655563542,500.0,0.00016548,2]
[393432657,1762655563575,500.0,0.00016548,2]
[393432658,1762655563602,300.01,0.00016548,2]
[393432659,1762655563625,199.99,0.00016548,2]
[393432660,1762655563674,500.0,0.00016548,2]
[393432661,1762655563703,500.0,0.00016548,2]
[393432662,1762655563732,500.0,0.00016548,2]
[393432663,1762655563760,500.0,0.00016548,2]
[393432664,1762655563793,500.0,0.00016548,2]
[393432665,1762655563822,500.0,0.00016548,2]
[393432666,1762655563850,500.0,0.00016548,2]
[393432667,1762655563878,500.0,0.00016548,2]
[393432668,1762655563912,500.0,0.00016548,2]
[393432669,1762655564106,500.0,0.00016548,2]
[393432670,1762655564135,500.0,0.00016548,2]
[393432671,1762655564164,500.0,0.00016548,2]
[393432672,1762655564192,500.0,0.00016548,2]
[393432673,1762655564221,500.0,0.00016548,2]
[393432674,1762655564258,500.0,0.00016548,2]
[393432675,1762655564286,500.0,0.00016548,2]
[393432676,1762655564337,500.0,0.00016548,2]
[393432677,1762655564366,500.0,0.00016548,2]
[393432678,1762655564398,500.0,0.00016548,2]
[393432679,1762655564457,300.02,0.00016548,2]
[393432680,1762655564485,199.98,0.00016548,2]
[393432681,1762655564518,500.0,0.00016548,2]
[393432682,1762655564551,500.0,0.00016548,2]
[393432683,1762655564579,500.0,0.00016548,2]
[393432684,1762655564640,500.0,0.00016548,2]
[393432685,1762655564669,500.0,0.00016548,2]
[393432686,1762655574247,177.54630722,0.00016548,2]
[393432687,1762655579852,500.0,0.00016548,2]
[393432688,1762655579894,500.0,0.00016548,2]
[393432689,1762655579927,500.0,0.00016548,2]
[393432690,1762655579958,500.0,0.00016548,2]
[393432691,1762655579999,500.0,0.00016548,2]
[393432692,1762655580030,500.0,0.00016548,2]
[393432693,1762655580061,500.0,0.00016548,2]
[393432694,1762655580099,500.0,0.00016548,2]
[393432695,1762655580131,500.0,0.00016548,2]
[393432696,1762655580173,500.0,0.00016548,2]
[393432697,1762655580204,500.0,0.00016548,2]
[393432698,1762655580235,500.0,0.00016548,2]
[393432699,1762655580277,500.0,0.00016548,2]
[393432700,1762655580316,500.0,0.00016548,2]
[393432701,1762655580346,122.48369278,0.00016548,2]
[393432702,1762655580370,377.51630722,0.00016548,2]
[393432703,1762655580423,500.0,0.00016548,2]
[393432704,1762655580452,500.0,0.00016548,2]
[393432705,1762655580484,500.0,0.00016548,2]
[393432706,1762655580515,500.0,0.00016548,2]
[393432707,1762655580542,500.0,0.00016548,2]
[393432708,1762655580599,500.0,0.00016548,2]
[393432709,1762655580627,500.0,0.00016548,2]
[393432710,1762655580657,500.0,0.00016548,2]
[393432711,1762655580693,500.0,0.00016548,2]
[393432712,1762655580722,500.0,0.00016548,2]
[393432713,1762655580750,500.0,0.00016548,2]
[393432714,1762655580778,500.0,0.00016548,2]
[393432715,1762655580806,500.0,0.00016548,2]
[393432716,1762655580834,500.0,0.00016548,2]
[393432717,1762655581002,500.0,0.00016548,2]
[393432718,1762655581040,500.0,0.00016548,2]
[393432719,1762655581069,500.0,0.00016548,2]
[393432720,1762655581101,500.0,0.00016548,2]
[393432721,1762655581131,500.0,0.00016548,2]
[393432722,1762655581160,122.49369278,0.00016548,2]
[393432723,1762655581184,377.50630722,0.00016548,2]
[393432724,1762655581213,500.0,0.00016548,2]
[393432725,1762655581241,500.0,0.00016548,2]
[393432726,1762655581269,500.0,0.00016548,2]
[393432727,1762655581304,500.0,0.00016548,2]
[393432728,1762655581332,198.59928604,0.00016548,2]
[393432729,1762655581360,500.0,0.00016548,2]
[393432730,1762655581388,500.0,0.00016548,2]
[393432731,1762655581417,300.0,0.00016672,2]
[393432732,1762655581446,500.0,0.00016548,2]
[393432733,1762655581478,500.0,0.00016548,2]
[393432734,1762655581510,500.0,0.00016548,2]
[393432735,1762655581544,500.0,0.00016548,2]
[393432736,1762655581573,500.0,0.00016548,2]
[393432737,1762655581600,500.0,0.00016548,2]
[393432738,1762655581629,500.0,0.00016548,2]
[393432739,1762655581664,500.0,0.00016548,2]
[393432740,1762655599224,2123.90440674,0.00016569,2]
[393432741,1762655599249,1621.07593696,0.00016569,2]
[393432742,1762655604029,500.0,0.00016548,2]
[393432743,1762655604062,500.0,0.00016548,2]
[393432744,1762655604105,500.0,0.00016548,2]
[393432745,1762655604142,500.0,0.00016548,2]
[393432746,1762655604180,500.0,0.00016548,2]
[393432747,1762655604262,550.00000001,0.00016548,2]
[393432748,1762655604318,500.0,0.00016548,2]
[393432749,1762655604372,500.0,0.00016548,2]
[393432750,1762655604425,500.0,0.00016548,2]
[393432751,1762655604624,500.0,0.00016548,2]
[393432752,1762655604651,216.19,0.00015918,2]
[393432753,1762655604681,500.0,0.00016548,2]
[393432754,1762655604715,500.0,0.00016548,2]
[393432755,1762655604745,500.0,0.00016548,2]
[393432756,1762655604778,500.0,0.00016548,2]
[393432757,1762655604815,500.0,0.00016548,2]
[393432758,1762655604855,500.0,0.00016548,2]
[393432759,1762655604912,112.74406303,0.00016548,2]
[393432760,1762655604938,387.25593697,0.00016548,2]
[393432762,1762655623214,500.0,0.00016549,2]
[393432763,1762655623442,638.95883668,0.00016648,2]
[393432764,1762655629507,161.58028035,0.00016672,2]
[393432765,1762655635740,300.0,0.0001662,2]
[393432766,1762655672232,1087.93029,0.00016672,2]
[393432767,1762655677990,435.56368762,0.00016549,2]
[393432768,1762655704239,2000.0,0.00016672,2]
[393432769,1762655708628,200.0,0.00016672,2]
[393432771,1762655763498,205.85842605,0.0001665,2]
[393432772,1762655808472,512.94152369,0.00016549,2]
[393432773,1762655881905,551.21,0.00039116,120]
[393432774,1762655887680,208.09145227,0.00016279,2]
[393432775,1762655889398,1726.84557519,0.00016431,2]
[393432776,1762655896307,207.29,8.116e-05,2]
[393432777,1762655896504,207.29,8.527e-05,2]
[393432778,1762655896782,207.29,8.937e-05,2]
[393432779,1762655896993,207.29,9.347e-05,2]
[393432780,1762655897231,207.29,9.758e-05,2]
[393432781,1762655897481,207.29,0.00010168,2]
[393432782,1762655897535,3038.75,0.00016438,2]
[393432783,1762655897687,207.29,0.00010579,2]
[393432784,1762655897898,207.29,0.00010989,2]
[393432785,1762655898092,207.29,0.00011399,2]
[393432786,1762655898288,207.29,0.0001181,2]
[393432787,1762655898642,207.29,0.0001222,2]
[393432788,1762655898765,207.29,0.00012631,2]
[393432789,1762655899176,207.29,0.00013041,2]
[393432790,1762655899423,207.29,0.00013451,2]
[393432791,1762655899705,207.29,0.00013862,2]
[393432792,1762655899919,207.29,0.00014272,2]
[393432793,1762655900136,207.29,0.00014683,2]
[393432794,1762655900334,207.29,0.00015093,2]
[393432795,1762655900534,207.29,0.00015504,2]
[393432796,1762655900737,207.29,0.00015914,2]
[393432797,1762655905385,300.0,0.00016467,2]
[393432798,1762655937254,300.0,0.0001667,2]
[393432799,1762655969142,300.0,0.00016419,2]
[393432800,1762656028058,1115.8686386,0.00016592,2]
[393432802,1762656064369,300.0,0.00016514,2]
[393432803,1762656078044,499.5913614,0.00016549,2]
[393432804,1762656078067,0.4086386,0.00016549,2]
[393432805,1762656078298,412.60310062,0.00016648,2]
[393432806,1762656090477,500.0,0.00039114,120]
[393432807,1762656090747,500.0,0.00039114,120]
[393432808,1762656090992,500.0,0.00039114,120]
[393432809,1762656105443,5888.0,0.00016614,2]
[393432810,1762656113843,3698.99826078,0.00016592,2]
[393432811,1762656113868,10000.01,0.00016592,2]
[393432812,1762656113893,7033.25636982,0.00016592,2]
[393432813,1762656121370,2090.0,0.00015883,2]
[393432814,1762656146658,470.56,0.00016679,2]
[393432815,1762656159511,300.0,0.00016572,2]
[393432816,1762656167169,189.30402878,0.00039114,120]
[393432817,1762656171867,106.19363018,0.00016595,2]
[393432818,1762656171890,105.42242282,0.00016595,2]
[393432819,1762656178926,200.0,0.00015879,2]
[393432820,1762656209874,150.0,0.00015879,2]
[393432821,1762656222624,300.0,0.00016679,2]
[393432822,1762656242709,788.47,0.00015879,2]
[393432823,1762656254823,300.0,0.00016549,2]
[393432824,1762656260989,1754.23,0.00015875,2]
[393432825,1762656318251,300.0,0.00016447,2]
[393432826,1762656349702,300.0,0.00016588,2]
[393432827,1762656410095,1726.84557519,0.00016374,2]
[393432828,1762656414934,1969.6793034,0.00016592,2]
[393432829,1762656444230,300.0,0.00016487,2]
[393432830,1762656475308,300.0,0.00016564,2]
[393432831,1762656492368,7381.69,0.00039115,60]
[393432832,1762656515276,166.66,0.00016322,2]
[393432833,1762656570887,300.0,0.0001659,2]
[393432834,1762656588252,1087.93029,0.0001664,2]
[393432835,1762656602511,300.0,0.00016642,2]
[393432845,1762656631970,-195.0,0.00016691,2]
[393432846,1762656631981,-443.5040445,0.00016692,2]
[393432847,1762656631991,-195.0,0.00016692,2]
[393432848,1762656632002,-681.0,0.00016699,2]
[393432849,1762656632012,-681.0,0.00016699,2]
[393432850,1762656632022,-375.75,0.00016704,2]
[393432851,1762656632032,-2500.0,0.00016722,2]
[393432852,1762656632042,-283.9,0.00016732,2]
[393432853,1762656632053,-300.0,0.00016738,2]
[393432854,1762656632063,-1200.0,0.00016738,2]
[393432855,1762656632074,-300.0,0.00016738,2]
[393432856,1762656632084,-4221.46722705,0.00016739,2]
[393432857,1762656632096,-3461.14911575,0.00016739,2]
[393432858,1762656632107,-5332.67529186,0.00016739,2]
[393432859,1762656632117,-1000.0,0.00016762,2]
[393432860,1762656632128,-681.0,0.00016786,2]
[393432861,1762656632138,-1009.0,0.000168,2]
[393432862,1762656632148,-300.0,0.000168,6]
[393432863,1762656632158,-550.0,0.0001682,2]
[393432864,1762656632167,-215.44561627,0.00016821,2]
[393432865,1762656632178,-500.0,0.00016821,2]
[393432866,1762656632188,-329.43277582,0.00016821,2]
[393432867,1762656632199,-500.0,0.00016821,2]
[393432868,1762656632209,-574.8599286,0.00016821,2]
[393432869,1762656632219,-500.0,0.00016821,2]
[393432870,1762656632229,-500.0,0.00016821,2]
[393432871,1762656632238,-500.0,0.00016821,2]
[393432872,1762656632249,-500.0,0.00016821,2]
[393432873,1762656632259,-500.0,0.00016821,2]
[393432874,1762656632269,-500.0,0.00016821,2]
[393432875,1762656632279,-500.0,0.00016821,2]
[393432876,1762656632289,-500.0,0.00016821,2]
[393432877,1762656632298,-293.45202628,0.00016821,2]
[393432878,1762656632308,-445.587,0.00016821,2]
[393432879,1762656632319,-500.0,0.00016821,2]
[393432880,1762656632328,-500.0,0.00016821,2]
[393432881,1762656632338,-500.0,0.00016821,2]
[393432882,1762656632348,-500.0,0.00016821,2]
[393432883,1762656632359,-500.0,0.00016821,2]
[393432884,1762656632368,-500.65,0.00016821,2]
[393432885,1762656632378,-500.0,0.00016821,2]
[393432886,1762656632388,-500.0,0.00016821,2]
[393432888,1762656632397,-67734.78210988,0.00016822,2]
[393432893,1762656632442,-434.30330845,0.00016822,2]
[393432895,1762656632457,-533.36121799,0.00016822,2]
[393432898,1762656632468,-632.47517174,0.00016822,2]
[393432914,1762656637905,-328.31959918,0.00016822,2]
[393432915,1762656638011,-308.08177085,0.00016822,2]
[393432916,1762656638120,-317.2591,0.00016722,2]
[393432917,1762656638130,-646.8351,0.00016822,2]
[393432924,1762656640060,-2661.0579304,0.00016822,2]
[393432925,1762656640166,-52469.75,0.00016822,2]
[393432959,1762656644322,-474.76999515,0.00016822,2]
[393432975,1762656646221,-389.77999994,0.00016822,2]
[393432976,1762656646233,-500.4799978,0.00016822,2]
[393432977,1762656646277,-316.3698615,0.00016822,2]
[393432978,1762656646593,-3209.47777559,0.00016822,2]
[393432979,1762656646649,-42069.54688614,0.00016822,2]
[393433010,1762656699019,300.0,0.00016677,2]
[393433011,1762656715311,300.0,0.00016676,2]
[393433012,1762656729279,1360.0,0.00039115,120]
[393433013,1762656766659,248.61393063,0.00039115,120]
[393433014,1762656777832,500.0,0.00039115,120]
[393433015,1762656778112,173.95609415,0.00039115,120]
[393433016,1762656780194,214.88331866,0.00039115,120]
[393433017,1762656782430,243.3049405,0.00039115,120]
[393433018,1762656784945,159.43685097,0.00039115,120]
[393433019,1762656785095,279.2963029,0.00039115,120]
[393433020,1762656785837,486.66730569,0.00039115,120]
[393433021,1762656794704,217.66215683,0.00039115,120]
[393433022,1762656795971,161.08685323,0.00039115,120]
[393433023,1762656798312,191.52923416,0.00039115,120]
[393433024,1762656800273,339.14370263,0.00039115,120]
[393433025,1762656802189,182.24765741,0.00039115,120]
[393433026,1762656802974,157.2155482,0.00039115,120]
[393433027,1762656804197,150.76051813,0.00039115,120]
[393433028,1762656807662,242.6910934,0.00039115,120]
[393433029,1762656809345,505.16662876,0.00039115,120]
[393433030,1762656811384,500.0,0.00039115,120]
[393433031,1762656811633,500.0,0.00039115,120]
[393433032,1762656811891,500.0,0.00039115,120]
[393433033,1762656812154,500.0,0.00039115,120]
[393433034,1762656812405,500.0,0.00039115,120]
[393433035,1762656812640,500.0,0.00039115,120]
[393433036,1762656812889,500.0,0.00039115,120]
[393433037,1762656813127,500.0,0.00039115,120]
[393433038,1762656813364,588.74066622,0.00039115,120]
[393433039,1762656818985,172.64481215,0.00039115,120]
[393433040,1762656824347,161.04232965,0.00039115,120]
[393433041,1762656834614,336.74979434,0.00039115,120]
[393433042,1762656836325,177.35091702,0.00039115,120]
[393433043,1762656852137,168.04019883,0.00039115,60]
[393433044,1762656854267,217.52562146,0.00039115,120]
[393433045,1762656856299,556.25,0.00039115,120]
[393433046,1762656856533,556.25,0.00039115,120]
[393433047,1762656856773,556.25,0.00039115,120]
[393433048,1762656857045,556.25,0.00039115,120]
[393433049,1762656857632,556.25,0.00039115,120]
[393433050,1762656857880,556.25,0.00039115,120]
[393433051,1762656858323,556.25,0.00039115,120]
[393433052,1762656858596,556.25,0.00039115,120]
[393433053,1762656858826,556.25,0.00039115,120]
[393433054,1762656859055,556.25,0.00039115,120]
[393433055,1762656859302,556.25,0.00039115,120]
[393433056,1762656859538,556.25,0.00039115,120]
[393433057,1762656859776,556.25,0.00039115,120]
[393433058,1762656860040,556.25,0.00039115,120]
[393433059,1762656860278,556.25,0.00039115,120]
[393433060,1762656860525,556.25,0.00039115,120]
[393433061,1762656860774,556.25,0.00039115,120]
[393433062,1762656861016,556.25,0.00039115,120]
[393433063,1762656861277,556.25,0.00039115,120]
[393433064,1762656861601,556.25,0.00039115,120]
[393433065,1762656861839,556.25,0.00039115,120]
[393433066,1762656862077,556.25,0.00039115,120]
[393433067,1762656862332,556.25,0.00039115,120]
[393433068,1762656862586,556.34007768,0.00039115,120]
[393433069,1762656866229,189.30402878,0.00039115,120]
[393433070,1762656872563,169.8018464,0.00039115,120]
[393433071,1762656875937,155.12264432,0.00039115,120]
[393433072,1762656876756,375.75,0.00016523,2]
[393433073,1762656880762,312.47271079,0.00039115,120]
[393433074,1762656884707,213.7390123,0.00039115,120]
[393433075,1762656892268,171.8342869,0.00039115,120]
[393433077,1762656893554,1087.93029,0.0001669,2]
[393433078,1762656894951,1726.84557519,0.00016657,2]
[393433079,1762656897904,232.0,0.00016689,2]
[393433080,1762656901525,179.8407084,0.00039115,120]
[393433081,1762656907678,500.0,0.00039115,120]
[393433082,1762656908077,198.02311134,0.00039115,120]
[393433083,1762656908243,256.89094886,0.00039115,120]
[393433084,1762656913270,363.93632832,0.00039115,120]
[393433085,1762656920804,185.0,0.00039115,120]
[393433086,1762656923779,332.51308804,0.00039115,120]
[393433087,1762656930789,232.0,0.00016398,2]
[393433088,1762656931000,500.0,0.00039115,120]
[393433089,1762656931586,500.0,0.00039115,120]
[393433090,1762656932042,500.0,0.00039115,120]
[393433091,1762656932297,500.0,0.00039115,120]
[393433092,1762656932529,500.0,0.00039115,120]
[393433093,1762656932792,500.0,0.00039115,120]
[393433094,1762656933019,500.0,0.00039115,120]
[393433095,1762656933257,500.0,0.00039115,120]
[393433096,1762656933491,500.0,0.00039115,120]
[393433097,1762656933838,260.33803773,0.00039115,120]
[393433098,1762656935656,500.0,0.00039115,120]
[393433099,1762656935896,500.0,0.00039115,120]
[393433100,1762656936130,500.0,0.00039115,120]
[393433101,1762656936380,500.0,0.00039115,120]
[393433102,1762656936608,500.0,0.00039115,120]
[393433103,1762656936841,500.0,0.00039115,120]
[393433104,1762656937085,500.0,0.00039115,120]
[393433105,1762656937331,500.0,0.00039115,120]
[393433106,1762656937593,500.0,0.00039115,120]
[393433107,1762656937963,500.0,0.00039115,120]
[393433108,1762656938427,500.0,0.00039115,120]
[393433109,1762656938670,500.0,0.00039115,120]
[393433110,1762656938927,500.0,0.00039115,120]
[393433111,1762656939183,500.0,0.00039115,120]
[393433112,1762656939408,554.90036421,0.00039115,120]
[393433113,1762656941326,569.16620469,0.00039115,120]
[393433114,1762656941500,500.0,0.00039115,120]
[393433115,1762656941666,232.0,0.00016529,2]
[393433116,1762656941731,500.0,0.00039115,120]
[393433117,1762656941909,508.66318764,0.00039115,120]
[393433118,1762656941988,500.0,0.00039115,120]
[393433119,1762656942220,500.0,0.00039115,120]
[393433120,1762656942503,500.0,0.00039115,120]
[393433121,1762656942744,500.0,0.00039115,120]